bitfinex/quotes_BTCUSD_20240617
["timestamp","ask_amount","ask_price","bid_price","bid_amount"]
[1718644456251,0.45816529,66076.0,66075.0,0.002]
[1718644456492,0.45016529,66076.0,66075.0,0.001]
[1718644456729,0.43616529,66076.0,66074.0,0.151345]
[1718644456959,0.45816529,66076.0,66074.0,0.153345]
[1718644457193,0.45016529,66076.0,66074.0,0.152345]
[1718644458363,0.43616529,66076.0,66074.0,0.151345]
[1718644458617,0.43616529,66076.0,66075.0,0.002]
[1718644458618,1.21486729,66076.0,66075.0,0.002]
[1718644458858,0.90418629,66076.0,66075.0,0.001]
[1718644459094,0.151346,66074.0,66069.0,0.151356]
[1718644459585,0.91218729,66076.0,66071.0,0.151351]
[1718644459832,0.45816529,66076.0,66067.0,0.30272]
[1718644460079,0.2,66072.0,66059.0,0.302758]
[1718644460315,0.151359,66068.0,66063.0,0.151369]
[1718644460554,0.302716,66069.0,66062.0,0.151372]
[1718644460794,0.2,66072.0,66067.0,0.15136]
[1718644461280,0.151353,66071.0,66064.0,0.302736]
[1718644461528,0.654052,66072.0,66066.0,0.151363]
[1718644461755,0.2,66072.0,66068.0,0.151358]
[1718644462440,0.151357,66069.0,66067.0,0.001]
[1718644462686,0.151355,66070.0,66065.0,0.151363]
[1718644462915,0.4033,66066.0,66056.0,0.302771]
[1718644463151,0.151369,66064.0,66059.0,0.151378]
[1718644463373,0.351366,66065.0,66060.0,0.151375]
[1718644463605,0.2,66065.0,66058.0,0.302761]
[1718644463865,0.151371,66063.0,66058.0,0.454141]
[1718644464096,0.151371,66063.0,66058.0,0.15138]
[1718644464326,0.2,66065.0,66061.0,0.151374]
[1718644464562,0.351366,66065.0,66061.0,0.151374]
[1718644465491,0.351366,66065.0,66052.0,0.302787]
[1718644465492,0.151375,66061.0,66054.0,0.724278]
[1718644465768,0.151376,66061.0,66054.0,0.724278]
[1718644466461,0.001,66064.0,66060.0,0.151377]
[1718644466681,0.001,66064.0,66063.0,0.454111]
[1718644466889,0.4033,66066.0,66063.0,0.15137]
[1718644467124,0.554663,66066.0,66061.0,0.151373]
[1718644467776,0.4033,66066.0,66059.0,0.302758]
[1718644467994,0.1825,66069.0,66059.0,0.02]
[1718644468206,0.1825,66069.0,66067.0,0.15136]
[1718644468421,0.1825,66069.0,66054.0,0.4315]
[1718644468645,0.151365,66066.0,66061.0,0.151373]
[1718644469104,0.004,66064.0,66061.0,0.151373]
[1718644469539,0.151365,66066.0,66061.0,0.151373]
[1718644469960,0.151365,66066.0,66061.0,0.154373]
[1718644470424,0.151365,66066.0,66061.0,0.151373]
[1718644470640,0.151365,66066.0,66062.0,0.151371]
[1718644471089,0.151362,66067.0,66062.0,0.151371]
[1718644471525,0.15122141,66067.0,66062.0,0.151371]
[1718644471740,0.151363,66066.0,66062.0,0.151371]
[1718644472383,0.153363,66066.0,66062.0,0.151371]
[1718644472861,0.156361,66067.0,66063.0,0.15137]
[1718644473091,0.151361,66067.0,66063.0,0.15137]
[1718644473314,0.009,66066.0,66063.0,0.15137]
[1718644473593,0.009,66066.0,66062.0,0.302743]
[1718644473814,0.009,66066.0,66064.0,0.151368]
[1718644474237,0.009,66066.0,66065.0,0.151366]
[1718644475103,0.2017152,66069.0,66065.0,0.151366]
[1718644475540,0.011,66067.0,66066.0,0.151363]
[1718644475964,0.005,66067.0,66066.0,0.151363]
[1718644476401,0.005,66067.0,66065.0,0.151365]
[1718644476630,0.3530732,66069.0,66065.0,0.151365]
[1718644477063,0.005,66066.0,66064.0,0.151367]
[1718644477534,0.005,66066.0,66060.0,0.302752]
[1718644477535,0.151367,66065.0,66060.0,0.151377]
[1718644477773,0.005,66066.0,66063.0,0.15137]
[1718644478213,0.005,66066.0,66064.0,0.151366]
[1718644478446,0.005,66066.0,66061.0,0.302748]
[1718644479345,0.009,66066.0,66065.0,0.151366]
[1718644479579,0.005,66066.0,66065.0,0.151366]
[1718644480017,0.006,66066.0,66065.0,0.454098]
[1718644480243,0.2017152,66069.0,66067.0,0.302721]
[1718644480463,0.2017152,66069.0,66068.0,0.454077]
[1718644480715,0.2017152,66069.0,66064.0,0.302735]
[1718644480716,0.2017152,66069.0,66066.0,0.302727]
[1718644480944,0.2017152,66069.0,66064.0,0.302735]
[1718644481209,0.2017152,66069.0,66066.0,0.151361]
[1718644481627,0.0799,66067.0,66063.0,0.151369]
[1718644481845,0.0799,66064.0,66063.0,0.151369]
[1718644482263,0.0799,66064.0,66061.0,0.151374]
[1718644482714,0.0799,66064.0,66062.0,0.151372]
[1718644482928,0.0799,66064.0,66060.0,0.302754]
[1718644482929,0.001,66066.0,66064.0,0.151367]
[1718644483355,0.0799,66065.0,66063.0,0.15137]
[1718644485024,0.003,66064.0,66063.0,0.15137]
[1718644485223,0.0799,66065.0,66063.0,0.15137]
[1718644485636,0.0869,66065.0,66063.0,0.15137]
[1718644486038,0.0849,66065.0,66063.0,0.15137]
[1718644486489,0.004,66064.0,66063.0,0.15137]
[1718644486902,0.0849,66065.0,66063.0,0.15137]
[1718644487179,0.0889,66065.0,66063.0,0.15137]
[1718644487764,0.0839,66065.0,66063.0,0.15137]
[1718644488180,0.005,66064.0,66063.0,0.15137]
[1718644488377,0.0839,66065.0,66062.0,0.151372]
[1718644488775,0.0889,66065.0,66062.0,0.151372]
[1718644489359,0.0849,66065.0,66062.0,0.151372]
[1718644489535,0.0799,66065.0,66062.0,0.151372]
[1718644489765,0.004,66064.0,66062.0,0.151372]
[1718644490185,0.0799,66065.0,66062.0,0.151372]
[1718644490484,0.0819,66065.0,66062.0,0.151372]
[1718644490933,0.0859,66065.0,66063.0,0.151369]
[1718644491136,0.0799,66064.0,66063.0,0.151369]
[1718644491856,0.0799,66064.0,66063.0,0.15046703]
[1718644492725,0.0849,66064.0,66063.0,0.15046703]
[1718644492921,0.0869,66064.0,66063.0,0.15046703]
[1718644493156,0.007,66064.0,66063.0,0.15046703]
[1718644493367,0.0869,66064.0,66063.0,0.75594903]
[1718644493584,0.0849,66064.0,66063.0,1.14924903]
[1718644493813,0.0889,66064.0,66063.0,1.14924903]
[1718644494230,0.0889,66064.0,66063.0,0.84650803]
[1718644495530,0.009,66064.0,66063.0,1.14924903]
[1718644495757,0.0889,66064.0,66063.0,1.14924903]
[1718644496446,0.009,66064.0,66063.0,1.27549003]
[1718644496663,0.0849,66064.0,66063.0,1.27549003]
[1718644496880,0.0849,66064.0,66063.0,1.42111618]
[1718644497086,0.0849,66064.0,66063.0,1.40111618]
[1718644497297,0.0799,66064.0,66063.0,0.97274903]
[1718644497503,0.0799,66064.0,66063.0,1.09837817]
[1718644497731,0.0809,66064.0,66063.0,1.40111959]
[1718644497944,0.0799,66064.0,66063.0,1.42111959]
[1718644498151,0.0799,66064.0,66063.0,1.40111959]
[1718644498365,0.0799,66064.0,66063.0,1.27549003]
[1718644498577,0.0799,66064.0,66063.0,1.42111851]
[1718644498798,0.0799,66064.0,66063.0,1.40111851]
[1718644499473,0.0799,66064.0,66063.0,1.42211851]
[1718644500082,0.0799,66064.0,66063.0,1.40211851]
[1718644500510,0.0799,66064.0,66063.0,1.42211851]
[1718644500758,0.4699,66073.0,66072.0,0.15135]
[1718644500971,0.00085,66074.0,66073.0,0.474042]
[1718644501183,0.00085,66074.0,66073.0,1.29904292]
[1718644501399,0.00085,66074.0,66073.0,1.60173792]
[1718644502085,0.00085,66074.0,66073.0,2.14835293]
[1718644502303,0.00885,66074.0,66073.0,2.20484152]
[1718644502535,0.00853,66080.0,66073.0,2.20482282]
[1718644502774,0.00853,66080.0,66076.0,1.975364]
[1718644502994,0.00853,66080.0,66076.0,2.66818085]
[1718644503220,0.00853,66080.0,66076.0,2.72315482]
[1718644504187,0.00853,66080.0,66076.0,2.42018739]
[1718644504385,0.00185,66077.0,66076.0,2.34028739]
[1718644504605,0.00853,66080.0,66079.0,1.642738]
[1718644504832,0.00853,66080.0,66079.0,2.45880789]
[1718644505052,0.00853,66080.0,66079.0,3.06414389]
[1718644506420,0.00953,66080.0,66079.0,3.0209768]
[1718644507103,0.00953,66080.0,66079.0,3.43997735]
[1718644507326,0.00085,66106.0,66092.0,0.02]
[1718644507540,0.0799,66105.0,66092.0,0.72693288]
[1718644507772,0.00085,66106.0,66092.0,0.72693288]
[1718644507773,0.0799,66102.0,66092.0,1.63475688]
[1718644507996,0.0799,66102.0,66092.0,1.93736488]
[1718644508491,0.00085,66106.0,66092.0,1.93736488]
[1718644508727,0.08844,66099.0,66092.0,1.61475688]
[1718644508981,0.08844,66099.0,66092.0,1.462028]
[1718644509200,0.08844,66093.0,66092.0,0.453912]
[1718644509459,0.08844,66093.0,66092.0,0.75652]
[1718644509460,0.00854,66093.0,66092.0,0.75652]
[1718644510361,0.00854,66093.0,66092.0,0.76752]
[1718644511047,0.08844,66093.0,66092.0,0.76752]
[1718644511256,0.00854,66093.0,66092.0,1.488728]
[1718644511687,0.00854,66093.0,66092.0,1.508728]
[1718644512132,0.00854,66093.0,66092.0,2.06606488]
[1718644512387,0.00854,66093.0,66092.0,2.06406488]
[1718644512600,0.00854,66093.0,66092.0,2.13896488]
[1718644513033,0.00854,66093.0,66092.0,1.76145688]
[1718644513276,0.00854,66093.0,66092.0,1.18612]
[1718644513500,0.00854,66093.0,66092.0,1.01302]
[1718644513955,0.00854,66093.0,66092.0,1.01802]
[1718644514400,0.00854,66093.0,66092.0,1.01302]
[1718644514645,0.00854,66093.0,66092.0,1.309628]
[1718644515096,0.00854,66093.0,66092.0,1.313628]
[1718644515315,0.00854,66093.0,66092.0,1.309628]
[1718644515568,0.00854,66093.0,66092.0,1.00702]
[1718644515826,0.00854,66093.0,66092.0,1.314628]
[1718644516065,0.00854,66093.0,66092.0,1.46735688]
[1718644516299,0.00854,66093.0,66092.0,1.74535688]
[1718644516520,0.00854,66093.0,66092.0,2.04796488]
[1718644516737,0.00854,66093.0,66092.0,2.35457288]
[1718644516952,0.00854,66093.0,66092.0,2.04996488]
[1718644517200,0.00854,66093.0,66092.0,2.04596488]
[1718644517428,0.00854,66093.0,66092.0,1.74335688]
[1718644517652,0.00854,66093.0,66092.0,1.74735688]
[1718644517883,0.00854,66093.0,66092.0,1.42474888]
[1718644518105,0.00854,66093.0,66092.0,1.29202]
[1718644518325,0.00854,66093.0,66092.0,1.17202]
[1718644518603,0.00854,66093.0,66092.0,1.474628]
[1718644518826,0.00854,66093.0,66092.0,1.470628]
[1718644519056,0.00854,66093.0,66092.0,1.486628]
[1718644519301,0.00854,66093.0,66092.0,1.493628]
[1718644519727,0.00854,66093.0,66092.0,1.486628]
[1718644519945,0.00854,66093.0,66092.0,1.797236]
[1718644520173,0.00854,66093.0,66092.0,1.16802]
[1718644520615,0.00854,66093.0,66092.0,1.486628]
[1718644520832,0.00854,66093.0,66092.0,1.490628]
[1718644521289,0.00854,66093.0,66092.0,1.64335688]
[1718644522162,0.00854,66093.0,66092.0,1.64735688]
[1718644522427,0.00854,66093.0,66092.0,2.04796488]
[1718644522633,0.00854,66093.0,66092.0,2.14796488]
[1718644522846,0.00854,66093.0,66092.0,2.27751138]
[1718644523029,0.00854,66093.0,66092.0,2.27751104]
[1718644523370,0.00854,66093.0,66092.0,2.57611904]
[1718644523600,0.00854,66093.0,66092.0,2.27751104]
[1718644524710,0.00854,66099.0,66092.0,2.27751104]
[1718644524711,0.00854,66099.0,66098.0,0.122]
[1718644524863,0.26472409,66122.0,66121.0,0.151237]
[1718644525068,0.1871,66123.0,66122.0,0.453706]
[1718644525272,0.1871,66123.0,66120.0,0.151239]
[1718644525480,0.1871,66123.0,66118.0,0.302487]
[1718644525683,0.1871,66123.0,66120.0,0.151239]
[1718644525911,0.1871,66123.0,66121.0,0.151237]
[1718644526125,0.1881,66123.0,66122.0,0.001]
[1718644526574,0.1881,66123.0,66121.0,0.151237]
[1718644526575,0.1871,66123.0,66121.0,0.151237]
[1718644526775,0.1996,66122.0,66121.0,0.151237]
[1718644526981,0.1996,66122.0,66120.0,0.152239]
[1718644527182,0.151242,66119.0,66114.0,0.151253]
[1718644527598,0.151239,66121.0,66113.0,0.30251]
[1718644527974,0.151239,66121.0,66115.0,0.302501]
[1718644528300,0.151239,66121.0,66116.0,0.151247]
[1718644528512,0.1996,66117.0,66104.0,0.02]
[1718644528725,0.1996,66117.0,66109.0,0.30253]
[1718644528940,0.1996,66117.0,66108.0,0.302534]
[1718644529191,0.17578884,66125.0,66122.0,0.001]
[1718644529410,0.4099,66124.0,66122.0,0.001]
[1718644529626,0.712362,66124.0,66108.0,0.15272888]
[1718644529842,0.712362,66124.0,66114.0,0.151252]
[1718644529843,0.151242,66120.0,66114.0,0.151252]
[1718644530049,0.151242,66119.0,66114.0,0.151252]
[1718644530252,0.302476,66121.0,66116.0,0.151248]
[1718644530253,0.453714,66121.0,66116.0,0.151248]
[1718644530460,0.453714,66121.0,66115.0,0.15125]
[1718644530461,0.151239,66121.0,66115.0,0.15125]
[1718644530666,0.151239,66121.0,66114.0,0.302503]
[1718644530880,0.151235,66122.0,66118.0,0.151243]
[1718644531101,0.4099,66124.0,66111.0,0.302518]
[1718644531319,0.302476,66121.0,66108.0,0.15272888]
[1718644531537,0.4099,66124.0,66123.0,0.151233]
[1718644531779,0.4099,66124.0,66121.0,0.151237]
[1718644532198,0.4099,66124.0,66119.0,0.15124]
[1718644532439,0.4099,66124.0,66118.0,0.302489]
[1718644532655,0.4099,66124.0,66120.0,0.151238]
[1718644532857,0.4099,66124.0,66121.0,0.151236]
[1718644533077,0.1996,66122.0,66114.0,0.302503]
[1718644533291,0.350836,66122.0,66117.0,0.151245]
[1718644533512,0.1996,66122.0,66118.0,0.151243]
[1718644533768,0.1996,66122.0,66115.0,0.302501]
[1718644533974,0.1996,66122.0,66119.0,0.151241]
[1718644534186,0.1996,66122.0,66121.0,0.001]
[1718644534410,0.1996,66122.0,66120.0,0.151239]
[1718644535921,0.1996,66122.0,66119.0,0.151242]
[1718644536370,0.1996,66122.0,66120.0,0.001]
[1718644536583,0.4099,66124.0,66123.0,0.151233]
[1718644536795,0.4099,66124.0,66122.0,0.151235]
[1718644537003,0.4099,66124.0,66120.0,0.002]
[1718644537209,0.4099,66124.0,66120.0,0.152238]
[1718644537493,0.41075,66124.0,66121.0,0.151236]
[1718644538137,0.41075,66124.0,66123.0,0.453699]
[1718644538575,0.00085,66124.0,66123.0,1.058631]
[1718644538782,0.00085,66124.0,66123.0,0.453699]
[1718644538994,0.00085,66124.0,66123.0,0.454699]
[1718644540205,0.00085,66124.0,66123.0,0.455699]
[1718644541467,0.00085,66124.0,66123.0,0.002]
[1718644541871,0.00085,66124.0,66123.0,0.455699]
[1718644542498,0.00085,66124.0,66123.0,0.153233]
[1718644542909,0.00085,66124.0,66123.0,0.455699]
[1718644543367,0.00085,66124.0,66123.0,0.758165]
[1718644544423,0.00085,66124.0,66123.0,1.080631]
[1718644545264,0.00085,66124.0,66123.0,1.079631]
[1718644545662,0.00085,66124.0,66123.0,1.078631]
[1718644546115,0.00085,66124.0,66123.0,0.756165]
[1718644546672,0.00085,66124.0,66123.0,1.078631]
[1718644549343,0.00085,66124.0,66123.0,1.23135988]
[1718644549751,0.00085,66124.0,66123.0,0.151233]
[1718644549954,0.00085,66124.0,66123.0,0.453699]
[1718644550155,0.00085,66124.0,66123.0,0.756165]
[1718644550571,0.00085,66124.0,66117.0,0.302493]
[1718644550775,0.00085,66124.0,66120.0,0.151238]
[1718644550988,0.4059,66123.0,66122.0,0.151235]
[1718644551593,0.00085,66124.0,66123.0,0.453699]
[1718644551796,0.00085,66124.0,66123.0,0.756165]
[1718644551994,0.00085,66124.0,66123.0,1.058631]
[1718644552213,0.00085,66124.0,66123.0,1.078631]
[1718644552622,0.00085,66124.0,66123.0,0.756165]
[1718644552848,0.00085,66124.0,66123.0,0.453699]
[1718644553474,0.18175,66124.0,66117.0,0.302489]
[1718644553676,0.18175,66124.0,66116.0,0.02]
[1718644553878,0.18175,66124.0,66123.0,0.756165]
[1718644554090,0.00085,66124.0,66123.0,0.756165]
[1718644554928,0.00085,66124.0,66123.0,1.058631]
[1718644555357,0.00085,66124.0,66123.0,1.068631]
[1718644555559,0.00085,66124.0,66123.0,1.281131]
[1718644555972,0.00085,66124.0,66123.0,1.301131]
[1718644556384,0.00085,66124.0,66123.0,1.281131]
[1718644556624,0.00085,66124.0,66123.0,0.756165]
[1718644556767,0.152081,66124.0,66120.0,0.151239]
[1718644556981,0.566134,66123.0,66119.0,0.151241]
[1718644557163,0.4149,66123.0,66122.0,0.151235]
[1718644557363,0.4149,66123.0,66122.0,0.453706]
[1718644557612,0.4149,66123.0,66122.0,0.756177]
[1718644557871,0.4149,66123.0,66122.0,0.453706]
[1718644558626,0.00085,66124.0,66123.0,0.151233]
[1718644558801,0.00085,66124.0,66123.0,0.453699]
[1718644559142,0.00085,66124.0,66123.0,0.756165]
[1718644559954,0.12472023,66128.0,66127.0,0.151224]
[1718644560361,0.12472023,66128.0,66114.0,0.02]
[1718644560559,0.15123,66125.0,66121.0,0.151237]
[1718644561004,0.27594223,66128.0,66121.0,0.302472]
[1718644561203,0.151231,66124.0,66119.0,0.151241]
[1718644561341,0.350829,66125.0,66120.0,0.151239]
[1718644561743,0.1996,66125.0,66119.0,0.302484]
[1718644561948,0.350829,66125.0,66120.0,0.151239]
[1718644562344,0.350829,66125.0,66108.0,0.080525]
[1718644562345,0.17272888,66124.0,66108.0,0.060525]
[1718644562545,0.151256,66113.0,66109.0,0.27679371]
[1718644562832,0.151256,66113.0,66109.0,0.151265]
[1718644563000,0.1775,66115.0,66114.0,0.151253]
[1718644563223,0.1775,66115.0,66108.0,0.302533]
[1718644563458,0.1775,66115.0,66113.0,0.151255]
[1718644563664,0.1775,66115.0,66112.0,0.302516]
[1718644564026,0.1775,66115.0,66113.0,0.151254]
[1718644564229,0.1775,66115.0,66111.0,0.151259]
[1718644564733,0.1775,66115.0,66114.0,0.151253]
[1718644565366,0.1775,66115.0,66110.0,0.302525]
[1718644565582,0.328753,66115.0,66111.0,0.15126]
[1718644565791,0.151256,66114.0,66109.0,0.163264]
[1718644566008,0.1775,66115.0,66109.0,0.31453]
[1718644566224,0.1775,66115.0,66109.0,0.012]
[1718644566430,0.1775,66115.0,66112.0,0.151258]
[1718644566643,0.1775,66115.0,66112.0,0.151257]
[1718644567437,0.1775,66115.0,66114.0,0.45376]
[1718644567647,0.182,66116.0,66115.0,0.453754]
[1718644567872,0.1798,66118.0,66115.0,0.453752]
[1718644568088,0.1798,66118.0,66116.0,0.151249]
[1718644568296,0.1996,66122.0,66117.0,0.302494]
[1718644568526,0.29039234,66123.0,66122.0,0.151235]
[1718644568960,0.29039234,66123.0,66122.0,0.453706]
[1718644569177,0.29039234,66123.0,66122.0,0.151235]
[1718644569398,0.22340594,66128.0,66127.0,0.151224]
[1718644569399,0.02380594,66128.0,66127.0,0.151224]
[1718644569608,0.02380594,66128.0,66127.0,0.75612]
[1718644569845,0.02380594,66128.0,66127.0,0.151224]
[1718644570059,0.02380594,66128.0,66127.0,0.75612]
[1718644570488,0.02380594,66128.0,66127.0,0.453672]
[1718644570710,0.02380594,66128.0,66127.0,0.75612]
[1718644571584,0.02362392,66128.0,66127.0,0.75712]
[1718644572223,0.02362392,66128.0,66127.0,0.454672]
[1718644572444,0.02362392,66128.0,66127.0,0.001]
[1718644572653,0.02362392,66128.0,66127.0,0.153224]
[1718644572892,0.02362392,66128.0,66127.0,0.002]
[1718644573111,0.02362392,66128.0,66127.0,0.20215496]
[1718644573112,1.0195168,66128.0,66127.0,0.20215496]
[1718644573339,1.68906665,66128.0,66127.0,0.20215496]
[1718644573556,1.40971585,66128.0,66127.0,0.20215496]
[1718644573789,2.37245151,66128.0,66127.0,0.20215496]
[1718644574000,1.97674554,66128.0,66127.0,0.20215496]
[1718644574231,2.0672566,66128.0,66127.0,0.20215496]
[1718644574447,1.97665199,66128.0,66127.0,0.20215496]
[1718644574652,1.64143357,66128.0,66127.0,0.20215496]
[1718644574866,1.70936594,66128.0,66127.0,0.20215496]
[1718644575081,1.14129901,66128.0,66127.0,0.20215496]
[1718644575292,1.3830454,66128.0,66127.0,0.20215496]
[1718644575538,1.6854884,66128.0,66127.0,0.20215496]
[1718644575756,2.14066028,66128.0,66127.0,0.20215496]
[1718644575963,2.25168028,66128.0,66127.0,0.20215496]
[1718644576168,2.57864052,66128.0,66127.0,0.20215496]
[1718644576397,2.66915158,66128.0,66127.0,0.20215496]
[1718644577670,2.68915158,66128.0,66127.0,0.20215496]
[1718644577891,2.50217935,66128.0,66127.0,0.20215496]
[1718644578156,2.39904052,66128.0,66127.0,0.20215496]
[1718644578358,2.59864052,66128.0,66127.0,0.20215496]
[1718644578989,2.59866491,66128.0,66127.0,0.20215496]
[1718644579201,2.71188706,66128.0,66127.0,0.20215496]
[1718644579428,0.77483819,66128.0,66127.0,0.20215496]
[1718644579643,0.29234903,66128.0,66127.0,0.95827496]
[1718644579858,0.02362392,66128.0,66127.0,1.38087496]
[1718644580275,0.00853,66131.0,66127.0,0.62475496]
[1718644580495,0.00853,66131.0,66130.0,1.058519]
[1718644580912,0.00853,66131.0,66130.0,1.078519]
[1718644581131,0.00853,66131.0,66130.0,1.058519]
[1718644581560,0.00853,66131.0,66130.0,0.756085]
[1718644581767,0.00853,66131.0,66130.0,0.776085]
[1718644582011,0.00853,66131.0,66130.0,0.756085]
[1718644583072,0.00853,66131.0,66130.0,0.763085]
[1718644583530,0.00853,66131.0,66130.0,0.756085]
[1718644583752,0.00853,66131.0,66130.0,0.769085]
[1718644583957,0.00853,66131.0,66130.0,0.762085]
[1718644585014,0.00853,66131.0,66130.0,0.756085]
[1718644585459,0.00853,66131.0,66130.0,0.761085]
[1718644585675,0.00853,66131.0,66130.0,0.455651]
[1718644585934,0.00853,66131.0,66130.0,0.453651]
[1718644586118,0.159745,66131.0,66130.0,0.005]
[1718644586563,0.462175,66131.0,66130.0,0.002]
[1718644586785,0.00853,66131.0,66130.0,0.002]
[1718644587222,0.151217,66130.0,66127.0,0.20015496]
[1718644587441,0.159745,66131.0,66127.0,0.35137696]
[1718644588784,0.159745,66131.0,66130.0,0.454651]
[1718644588785,0.00853,66131.0,66130.0,0.454651]
[1718644589238,0.00853,66131.0,66130.0,0.759085]
[1718644589450,0.00853,66131.0,66130.0,0.939785]
[1718644591595,0.00853,66131.0,66130.0,1.262219]
[1718644591861,0.00853,66131.0,66130.0,0.939785]
[1718644592962,0.00853,66131.0,66130.0,0.942785]
[1718644593178,0.00853,66131.0,66130.0,0.640351]
[1718644593387,0.00853,66131.0,66130.0,0.1857]
[1718644593666,0.00853,66131.0,66130.0,0.342917]
[1718644593887,0.00853,66131.0,66130.0,0.641351]
[1718644594107,0.00853,66131.0,66130.0,0.943785]
[1718644594738,0.00853,66131.0,66130.0,1.246219]
[1718644595183,0.00853,66131.0,66130.0,1.242219]
[1718644595398,0.00853,66131.0,66130.0,1.246219]
[1718644595609,0.00853,66131.0,66130.0,0.939785]
[1718644596050,0.00853,66131.0,66130.0,0.943785]
[1718644596259,0.00853,66131.0,66130.0,0.947785]
[1718644596470,0.00853,66131.0,66130.0,0.645351]
[1718644596694,0.00853,66131.0,66130.0,0.947785]
[1718644597103,0.00853,66131.0,66130.0,0.939785]
[1718644597798,0.00853,66131.0,66130.0,0.943785]
[1718644598453,0.00853,66131.0,66130.0,1.266219]
[1718644598722,0.00853,66131.0,66130.0,0.758085]
[1718644598937,0.39033,66131.0,66127.0,0.20015496]
[1718644599147,0.843975,66131.0,66130.0,0.004]
[1718644599369,0.151221,66128.0,66127.0,0.20015496]
[1718644599546,0.151217,66130.0,66127.0,0.20015496]
[1718644599805,0.15122,66129.0,66127.0,0.20015496]
[1718644600436,0.151217,66130.0,66127.0,0.20015496]
[1718644600851,0.151217,66130.0,66128.0,0.000935]
[1718644601076,0.453658,66129.0,66128.0,0.000935]
[1718644601321,0.151219,66129.0,66128.0,0.000935]
[1718644602190,0.453658,66129.0,66128.0,0.000935]
[1718644603425,0.151219,66129.0,66128.0,0.000935]
[1718644603836,0.453658,66129.0,66128.0,0.000935]
[1718644604243,0.151219,66129.0,66128.0,0.000935]
[1718644604653,0.453658,66129.0,66128.0,0.000935]
[1718644605225,0.151219,66129.0,66128.0,0.000935]
[1718644605670,0.756097,66129.0,66128.0,0.000935]
[1718644605897,1.23126488,66129.0,66128.0,0.000935]
[1718644606124,1.26963451,66129.0,66128.0,0.000935]
[1718644606561,1.24963451,66129.0,66128.0,0.000935]
[1718644606984,1.21126488,66129.0,66128.0,0.000935]
[1718644607591,1.24955489,66129.0,66128.0,0.000935]
[1718644607772,1.21126488,66129.0,66128.0,0.000935]
[1718644608415,0.00853,66131.0,66128.0,0.000935]
[1718644608627,0.00853,66131.0,66130.0,0.876251]
[1718644609299,0.00853,66131.0,66130.0,0.4226]
[1718644609506,0.159745,66131.0,66130.0,0.4226]
[1718644609919,0.164745,66131.0,66130.0,0.2263]
[1718644610145,0.164745,66131.0,66128.0,0.001935]
[1718644610146,0.151219,66129.0,66128.0,0.000935]
[1718644610356,0.453658,66129.0,66128.0,0.000935]
[1718644610572,0.151219,66129.0,66128.0,0.000935]
[1718644610777,0.453658,66129.0,66128.0,0.000935]
[1718644611193,0.151219,66129.0,66128.0,0.000935]
[1718644611677,0.453658,66129.0,66128.0,0.000935]
[1718644612341,0.151219,66129.0,66128.0,0.000935]
[1718644612544,0.453658,66129.0,66128.0,0.000935]
[1718644612754,0.157219,66129.0,66128.0,0.002935]
[1718644612960,0.04410983,66129.0,66128.0,0.002935]
[1718644613170,0.157219,66129.0,66128.0,0.002935]
[1718644613745,0.4978215,66129.0,66128.0,0.002935]
[1718644614446,0.0441635,66129.0,66128.0,0.002935]
[1718644614866,0.006,66129.0,66128.0,0.002935]
[1718644615173,0.04417399,66129.0,66128.0,0.002935]
[1718644615806,0.95299987,66129.0,66128.0,0.002935]
[1718644616019,1.25543887,66129.0,66128.0,0.002935]
[1718644616225,1.39567268,66129.0,66128.0,0.002935]
[1718644616407,1.37567268,66129.0,66128.0,0.002935]
[1718644616650,1.07323368,66129.0,66128.0,0.002935]
[1718644616857,1.37567268,66129.0,66128.0,0.002935]
[1718644619014,0.95299987,66129.0,66128.0,0.002935]
[1718644619871,0.19690287,66129.0,66128.0,0.002935]
[1718644621003,0.65056087,66129.0,66128.0,0.002935]
[1718644621896,0.34812187,66129.0,66128.0,0.002935]
[1718644622498,0.37090024,66129.0,66128.0,0.002935]
[1718644622767,0.37090024,66129.0,66128.0,0.456599]
[1718644622768,0.02877837,66129.0,66128.0,0.456599]
[1718644622980,0.006,66129.0,66128.0,0.759042]
[1718644623191,0.006,66129.0,66128.0,0.456599]
[1718644623422,0.006,66129.0,66128.0,0.002935]
[1718644624190,0.003,66129.0,66128.0,0.455599]
[1718644624415,0.00853,66131.0,66130.0,0.756085]
[1718644624628,0.00853,66131.0,66130.0,0.453651]
[1718644625073,0.00853,66131.0,66130.0,0.756085]
[1718644625292,0.00853,66131.0,66130.0,0.935785]
[1718644626372,0.01153,66131.0,66130.0,1.499919]
[1718644626810,0.01453,66131.0,66130.0,1.499919]
[1718644627500,0.01453,66131.0,66130.0,1.479919]
[1718644627743,0.00853,66131.0,66130.0,1.499919]
[1718644627982,0.00853,66131.0,66130.0,1.802353]
[1718644627983,0.00953,66131.0,66130.0,1.802353]
[1718644628206,0.00953,66131.0,66130.0,1.62541268]
[1718644628646,0.00953,66131.0,66130.0,1.62541072]
[1718644628872,0.00953,66131.0,66130.0,1.499919]
[1718644629092,0.00953,66131.0,66130.0,1.479919]
[1718644629313,0.00853,66131.0,66130.0,1.499919]
[1718644629535,0.00853,66131.0,66130.0,1.501919]
[1718644630468,0.00853,66131.0,66130.0,1.806353]
[1718644630693,0.00853,66131.0,66130.0,1.503919]
[1718644631855,0.00853,66131.0,66130.0,1.201485]
[1718644636021,0.00853,66131.0,66130.0,1.503919]
[1718644636224,0.00853,66131.0,66130.0,1.73140511]
[1718644636576,0.00853,66131.0,66130.0,1.73140396]
[1718644637305,0.00853,66131.0,66130.0,1.62940396]
[1718644637759,0.00853,66131.0,66130.0,1.73140396]